[Event "Titled Tuesday Blitz November 07 Late 2023"]
[White "Colas, Joshua"]
[Black "Ward, Ieuan C"]
[WhiteFideId "2044447"]
[BlackFideId "406627"]
[WhiteElo "2590"]
[BlackElo "2344"]
[Result "1-0"]
[Round "2"]
[TimeControl "180+1"]
[Date "2023.11.07"]
[WhiteClock "0:00:16"]
[BlackClock "0:00:00"]
[Board "106"]

1. Nf3 {[%clk 0:03:00]}  e6 {[%clk 0:02:59]} 2. d4 {[%clk 0:02:51]}  d5 {[%clk 0:02:58]} 3. Bf4 {[%clk 0:02:50]}  Nf6 {[%clk 0:02:58]} 4. e3 {[%clk 0:02:50]}  Bd6 {[%clk 0:02:59]} 5. Nbd2 {[%clk 0:02:48]}  O-O {[%clk 0:02:57]} 6. Be2 {[%clk 0:02:42]}  c5 {[%clk 0:02:56]} 7. O-O {[%clk 0:02:41]}  Bxf4 {[%clk 0:02:42]} 8. exf4 {[%clk 0:02:42]}  cxd4 {[%clk 0:02:42]} 9. Nxd4 {[%clk 0:02:43]}  Nc6 {[%clk 0:02:36]} 10. N2f3 {[%clk 0:02:43]}  Qd6 {[%clk 0:02:32]} 11. g3 {[%clk 0:02:43]}  Nxd4 {[%clk 0:02:28]} 12. Qxd4 {[%clk 0:02:43]}  Qb6 {[%clk 0:02:08]} 13. Qxb6 {[%clk 0:02:38]}  axb6 {[%clk 0:02:09]} 14. a3 {[%clk 0:02:25]}  Bd7 {[%clk 0:02:08]} 15. Nd4 {[%clk 0:02:24]}  Rfc8 {[%clk 0:02:06]} 16. c3 {[%clk 0:02:25]}  Ne4 {[%clk 0:02:04]} 17. Rfd1 {[%clk 0:02:19]}  Ba4 {[%clk 0:02:01]} 18. Re1 {[%clk 0:02:16]}  h6 {[%clk 0:01:45]} 19. Bb5 {[%clk 0:02:05]}  Bxb5 {[%clk 0:01:32]} 20. Nxb5 {[%clk 0:02:06]}  Nd2 {[%clk 0:01:22]} 21. Re2 {[%clk 0:01:59]}  Nc4 {[%clk 0:01:19]} 22. Rd1 {[%clk 0:01:53]}  Rc5 {[%clk 0:01:16]} 23. Nd4 {[%clk 0:01:35]}  g6 {[%clk 0:01:16]} 24. g4 {[%clk 0:01:33]}  Nd6 {[%clk 0:01:09]} 25. f3 {[%clk 0:01:32]}  h5 {[%clk 0:00:52]} 26. h3 {[%clk 0:01:22]}  Nb5 {[%clk 0:00:40]} 27. Nxb5 {[%clk 0:00:55]}  Rxb5 {[%clk 0:00:40]} 28. gxh5 {[%clk 0:00:49]}  gxh5 {[%clk 0:00:40]} 29. f5 {[%clk 0:00:49]}  exf5 {[%clk 0:00:37]} 30. Rdd2 {[%clk 0:00:48]}  Kg7 {[%clk 0:00:36]} 31. Re5 {[%clk 0:00:48]}  Kf6 {[%clk 0:00:35]} 32. Rexd5 {[%clk 0:00:49]}  Rxd5 {[%clk 0:00:33]} 33. Rxd5 {[%clk 0:00:50]}  Re8 {[%clk 0:00:33]} 34. Kf2 {[%clk 0:00:50]}  Re6 {[%clk 0:00:30]} 35. Rd7 {[%clk 0:00:50]}  f4 {[%clk 0:00:26]} 36. Rxb7 {[%clk 0:00:48]}  Kg6 {[%clk 0:00:26]} 37. h4 {[%clk 0:00:44]}  Kf6 {[%clk 0:00:20]} 38. a4 {[%clk 0:00:43]}  Ke5 {[%clk 0:00:20]} 39. Rd7 {[%clk 0:00:40]}  f6 {[%clk 0:00:19]} 40. c4 {[%clk 0:00:36]}  Rc6 {[%clk 0:00:18]} 41. b3 {[%clk 0:00:37]}  Ke6 {[%clk 0:00:13]} 42. Rd5 {[%clk 0:00:37]}  f5 {[%clk 0:00:13]} 43. a5 {[%clk 0:00:33]}  bxa5 {[%clk 0:00:12]} 44. Rxa5 {[%clk 0:00:34]}  Rb6 {[%clk 0:00:12]} 45. Rb5 {[%clk 0:00:32]}  Ra6 {[%clk 0:00:08]} 46. Rd5 {[%clk 0:00:16]}  Rb6 {[%clk 0:00:00]} 47. Rd3 {[%clk 0:00:16]} 1-0


[Site "https://www.chess.com"]

[Event "Titled Tuesday Blitz November 07 Late 2023"]
[White "Przybylski, Wojciech"]
[Black "KorolDimitriy75"]
[WhiteFideId "1117599"]
[WhiteElo "2534"]
[BlackElo "2338"]
[Result "1-0"]
[Round "2"]
[TimeControl "180+1"]
[Date "2023.11.07"]
[WhiteClock "0:00:18"]
[BlackClock "0:00:00"]
[Board "110"]

1. d4 {[%clk 0:03:00]}  Nf6 {[%clk 0:02:59]} 2. c4 {[%clk 0:03:00]}  c5 {[%clk 0:02:59]} 3. d5 {[%clk 0:02:59]}  b5 {[%clk 0:02:59]} 4. cxb5 {[%clk 0:02:56]}  a6 {[%clk 0:02:59]} 5. b6 {[%clk 0:02:56]}  d6 {[%clk 0:02:59]} 6. e4 {[%clk 0:02:52]}  Nbd7 {[%clk 0:03:00]} 7. Nc3 {[%clk 0:02:48]}  g6 {[%clk 0:03:00]} 8. f4 {[%clk 0:02:47]}  Bg7 {[%clk 0:02:56]} 9. Nf3 {[%clk 0:02:47]}  O-O {[%clk 0:02:54]} 10. Bd3 {[%clk 0:02:45]}  Nxb6 {[%clk 0:02:54]} 11. O-O {[%clk 0:02:45]}  a5 {[%clk 0:02:32]} 12. Kh1 {[%clk 0:02:42]}  a4 {[%clk 0:02:28]} 13. a3 {[%clk 0:02:37]}  Ba6 {[%clk 0:02:22]} 14. Bxa6 {[%clk 0:02:30]}  Rxa6 {[%clk 0:02:23]} 15. Be3 {[%clk 0:02:19]}  Nfd7 {[%clk 0:01:31]} 16. Qe2 {[%clk 0:02:15]}  Qa8 {[%clk 0:01:27]} 17. Nb5 {[%clk 0:02:14]}  Rc8 {[%clk 0:01:23]} 18. Bd2 {[%clk 0:01:58]}  Bxb2 {[%clk 0:01:16]} 19. Rab1 {[%clk 0:01:57]}  Bg7 {[%clk 0:01:16]} 20. Bc3 {[%clk 0:01:56]}  Bxc3 {[%clk 0:00:42]} 21. Nxc3 {[%clk 0:01:56]}  Ra5 {[%clk 0:00:43]} 22. Nd2 {[%clk 0:01:23]}  Qa6 {[%clk 0:00:35]} 23. Qf3 {[%clk 0:01:23]}  Nc4 {[%clk 0:00:29]} 24. Nxc4 {[%clk 0:01:18]}  Qxc4 {[%clk 0:00:30]} 25. Rb7 {[%clk 0:01:13]}  Rd8 {[%clk 0:00:20]} 26. h3 {[%clk 0:00:56]}  Raa8 {[%clk 0:00:18]} 27. Re1 {[%clk 0:00:38]}  Rab8 {[%clk 0:00:17]} 28. Ra7 {[%clk 0:00:24]}  Rb3 {[%clk 0:00:16]} 29. Re3 {[%clk 0:00:25]}  Nf6 {[%clk 0:00:00]} 30. Rxa4 {[%clk 0:00:18]} 1-0


[Site "https://www.chess.com"]

[Event "Titled Tuesday Blitz November 07 Late 2023"]
[White "Sreyas Payyappat"]
[Black "Shapiro, Daniel"]
[WhiteFideId "46674969"]
[BlackFideId "2001780"]
[WhiteElo "2511"]
[BlackElo "2330"]
[Result "0-1"]
[Round "2"]
[TimeControl "180+1"]
[Date "2023.11.07"]
[WhiteClock "0:00:48"]
[BlackClock "0:00:25"]
[Board "116"]

1. e4 {[%clk 0:03:00]}  c5 {[%clk 0:02:58]} 2. Nf3 {[%clk 0:03:01]}  Nc6 {[%clk 0:02:57]} 3. d4 {[%clk 0:03:01]}  cxd4 {[%clk 0:02:56]} 4. Nxd4 {[%clk 0:03:02]}  Nf6 {[%clk 0:02:56]} 5. Nc3 {[%clk 0:03:02]}  d6 {[%clk 0:02:57]} 6. Bg5 {[%clk 0:03:00]}  Qb6 {[%clk 0:02:56]} 7. Ndb5 {[%clk 0:02:55]}  a6 {[%clk 0:02:56]} 8. Bxf6 {[%clk 0:02:55]}  gxf6 {[%clk 0:02:40]} 9. Nd5 {[%clk 0:02:53]}  Qa5+ {[%clk 0:02:40]} 10. b4 {[%clk 0:02:51]}  Nxb4 {[%clk 0:01:39]} 11. Nbc7+ {[%clk 0:02:33]}  Kd8 {[%clk 0:01:27]} 12. Qd2 {[%clk 0:02:18]}  Nxc2+ {[%clk 0:00:58]} 13. Kd1 {[%clk 0:02:18]}  Qxd2+ {[%clk 0:00:55]} 14. Kxd2 {[%clk 0:02:17]}  Nxa1 {[%clk 0:00:56]} 15. Nxa8 {[%clk 0:02:17]}  f5 {[%clk 0:00:54]} 16. Bc4 {[%clk 0:01:56]}  Bg7 {[%clk 0:00:53]} 17. Nc3 {[%clk 0:01:51]}  b5 {[%clk 0:00:50]} 18. Bxf7 {[%clk 0:01:37]}  fxe4 {[%clk 0:00:49]} 19. Bd5 {[%clk 0:01:19]}  Rf8 {[%clk 0:00:42]} 20. Nxe4 {[%clk 0:01:18]}  e6 {[%clk 0:00:36]} 21. Bc6 {[%clk 0:01:18]}  d5 {[%clk 0:00:37]} 22. Ng5 {[%clk 0:01:09]}  Rxf2+ {[%clk 0:00:36]} 23. Ke3 {[%clk 0:01:04]}  Rxg2 {[%clk 0:00:33]} 24. h3 {[%clk 0:00:59]}  Rxg5 {[%clk 0:00:32]} 25. Rf1 {[%clk 0:00:57]}  Ke7 {[%clk 0:00:31]} 26. Nb6 {[%clk 0:00:55]}  Nc2+ {[%clk 0:00:30]} 27. Kd2 {[%clk 0:00:53]}  Nd4 {[%clk 0:00:29]} 28. Nxc8+ {[%clk 0:00:52]}  Kd8 {[%clk 0:00:29]} 29. Nd6 {[%clk 0:00:52]}  Rg2+ {[%clk 0:00:26]} 30. Kd3 {[%clk 0:00:52]}  Nxc6 {[%clk 0:00:27]} 31. Rf7 {[%clk 0:00:48]}  Ne5+ {[%clk 0:00:25]} 0-1


[Site "https://www.chess.com"]

[Event "Titled Tuesday Blitz November 07 Late 2023"]
[White "Sepulveda Rojas, Jorge"]
[Black "Harriott, Tyrell"]
[WhiteFideId "3404803"]
[BlackFideId "2086484"]
[WhiteElo "2510"]
[BlackElo "2329"]
[Result "0-1"]
[Round "2"]
[TimeControl "180+1"]
[Date "2023.11.07"]
[WhiteClock "0:02:02"]
[BlackClock "0:00:58"]
[Board "117"]

1. e4 {[%clk 0:02:59]}  d5 {[%clk 0:03:00]} 2. exd5 {[%clk 0:02:59]}  Nf6 {[%clk 0:03:00]} 3. d4 {[%clk 0:02:58]}  Qxd5 {[%clk 0:02:59]} 4. Nf3 {[%clk 0:02:58]}  Bg4 {[%clk 0:02:58]} 5. Be2 {[%clk 0:02:58]}  Nc6 {[%clk 0:02:58]} 6. c3 {[%clk 0:02:58]}  O-O-O {[%clk 0:02:57]} 7. Qb3 {[%clk 0:02:57]}  Qe4 {[%clk 0:02:50]} 8. Be3 {[%clk 0:02:56]}  Nd5 {[%clk 0:02:44]} 9. Nbd2 {[%clk 0:02:55]}  Qf5 {[%clk 0:02:41]} 10. O-O {[%clk 0:02:50]}  Qh5 {[%clk 0:02:38]} 11. h3 {[%clk 0:02:48]}  Nf6 {[%clk 0:02:31]} 12. Bb5 {[%clk 0:02:41]}  Bxh3 {[%clk 0:02:26]} 13. gxh3 {[%clk 0:02:40]}  Qxh3 {[%clk 0:02:25]} 14. Qxf7 {[%clk 0:02:38]}  Qg4+ {[%clk 0:02:14]} 15. Kh1 {[%clk 0:02:37]}  Rd5 {[%clk 0:02:13]} 16. Nh2 {[%clk 0:02:33]}  Qh3 {[%clk 0:01:59]} 17. Bc4 {[%clk 0:02:30]}  Nd8 {[%clk 0:01:50]} 18. Qxd5 {[%clk 0:02:25]}  Nxd5 {[%clk 0:01:49]} 19. Bxd5 {[%clk 0:02:26]}  e6 {[%clk 0:01:42]} 20. Bg2 {[%clk 0:02:25]}  Qh4 {[%clk 0:01:38]} 21. Nf3 {[%clk 0:02:23]}  Qh5 {[%clk 0:01:37]} 22. Ne5 {[%clk 0:02:23]}  Bd6 {[%clk 0:01:34]} 23. f4 {[%clk 0:02:22]}  Bxe5 {[%clk 0:01:25]} 24. dxe5 {[%clk 0:02:18]}  h6 {[%clk 0:01:22]} 25. Rf2 {[%clk 0:02:17]}  g5 {[%clk 0:01:22]} 26. Bf3 {[%clk 0:02:08]}  Qg6 {[%clk 0:01:19]} 27. fxg5 {[%clk 0:02:06]}  hxg5 {[%clk 0:01:16]} 28. Bg4 {[%clk 0:02:05]}  Qe4+ {[%clk 0:01:12]} 29. Rf3 {[%clk 0:02:04]}  Qxg4 {[%clk 0:01:11]} 30. Raf1 {[%clk 0:02:03]}  Qe4 {[%clk 0:01:07]} 31. Kg2 {[%clk 0:02:02]}  g4 {[%clk 0:01:04]} 32. Nxg4 {[%clk 0:02:02]}  Qxg4+ {[%clk 0:01:05]} 33. Rg3 {[%clk 0:02:02]}  Qe4+ {[%clk 0:01:05]} 34. Kf2 {[%clk 0:02:02]}  Rh2+ {[%clk 0:01:03]} 35. Kg1 {[%clk 0:02:02]}  Qh1# {[%clk 0:00:58]} 0-1


[Site "https://www.chess.com"]

[Event "Titled Tuesday Blitz November 07 Late 2023"]
[White "MariusBieliauskas"]
[Black "Osmak, Yuliia"]
[BlackFideId "14101602"]
[WhiteElo "2325"]
[BlackElo "2510"]
[Result "1-0"]
[Round "2"]
[TimeControl "180+1"]
[Date "2023.11.07"]
[WhiteClock "0:00:05"]
[BlackClock "0:00:00"]
[Board "118"]

1. d4 {[%clk 0:02:58]}  Nf6 {[%clk 0:02:58]} 2. c4 {[%clk 0:02:59]}  e6 {[%clk 0:02:57]} 3. Nf3 {[%clk 0:02:58]}  c5 {[%clk 0:02:57]} 4. g3 {[%clk 0:02:56]}  cxd4 {[%clk 0:02:53]} 5. Nxd4 {[%clk 0:02:56]}  Nc6 {[%clk 0:02:52]} 6. Bg2 {[%clk 0:02:56]}  Bc5 {[%clk 0:02:50]} 7. Nb3 {[%clk 0:02:54]}  Be7 {[%clk 0:02:47]} 8. Nc3 {[%clk 0:02:54]}  O-O {[%clk 0:02:46]} 9. O-O {[%clk 0:02:54]}  b6 {[%clk 0:02:42]} 10. Bf4 {[%clk 0:02:40]}  Bb7 {[%clk 0:02:39]} 11. Bd6 {[%clk 0:02:40]}  Rc8 {[%clk 0:02:28]} 12. Nb5 {[%clk 0:02:36]}  Ne8 {[%clk 0:02:06]} 13. Bxe7 {[%clk 0:02:33]}  Qxe7 {[%clk 0:02:07]} 14. Nxa7 {[%clk 0:02:30]}  Nxa7 {[%clk 0:02:03]} 15. Bxb7 {[%clk 0:02:30]}  Rxc4 {[%clk 0:02:03]} 16. Bg2 {[%clk 0:02:26]}  d5 {[%clk 0:02:01]} 17. Rc1 {[%clk 0:02:24]}  Nd6 {[%clk 0:02:00]} 18. Qd2 {[%clk 0:02:09]}  Rfc8 {[%clk 0:01:55]} 19. Nd4 {[%clk 0:01:55]}  Qc7 {[%clk 0:01:30]} 20. Rxc4 {[%clk 0:01:45]}  Qxc4 {[%clk 0:01:28]} 21. b3 {[%clk 0:01:42]}  Qc3 {[%clk 0:01:26]} 22. Qf4 {[%clk 0:01:39]}  Nab5 {[%clk 0:01:14]} 23. Nf3 {[%clk 0:01:22]}  Ne4 {[%clk 0:01:08]} 24. h4 {[%clk 0:01:15]}  h6 {[%clk 0:01:07]} 25. Ne5 {[%clk 0:01:03]}  f6 {[%clk 0:00:40]} 26. Nd3 {[%clk 0:00:51]}  Nd4 {[%clk 0:00:38]} 27. Kh2 {[%clk 0:00:37]}  e5 {[%clk 0:00:23]} 28. Qg4 {[%clk 0:00:32]}  f5 {[%clk 0:00:22]} 29. Qg6 {[%clk 0:00:29]}  Nxe2 {[%clk 0:00:13]} 30. Qxf5 {[%clk 0:00:27]}  Rf8 {[%clk 0:00:12]} 31. Qe6+ {[%clk 0:00:27]}  Kh8 {[%clk 0:00:11]} 32. Nxe5 {[%clk 0:00:26]}  Rf6 {[%clk 0:00:10]} 33. Qe8+ {[%clk 0:00:24]}  Kh7 {[%clk 0:00:09]} 34. Bxe4+ {[%clk 0:00:23]}  dxe4 {[%clk 0:00:08]} 35. h5 {[%clk 0:00:18]}  Nxg3 {[%clk 0:00:07]} 36. Ng6 {[%clk 0:00:06]}  Nxf1+ {[%clk 0:00:00]} 37. Kg1 {[%clk 0:00:05]} 1-0


[Site "https://www.chess.com"]

[Event "Titled Tuesday Blitz November 07 Late 2023"]
[White "Rangel, Daniel"]
[Black "Nita, Lucian"]
[WhiteFideId "2124475"]
[BlackFideId "1206923"]
[WhiteElo "2508"]
[BlackElo "2325"]
[Result "1-0"]
[Round "2"]
[TimeControl "180+1"]
[Date "2023.11.07"]
[WhiteClock "0:00:04"]
[BlackClock "0:00:17"]
[Board "119"]

1. c4 {[%clk 0:02:59]}  d6 {[%clk 0:03:00]} 2. g3 {[%clk 0:02:59]}  e5 {[%clk 0:03:00]} 3. Bg2 {[%clk 0:03:00]}  Nf6 {[%clk 0:03:01]} 4. Nc3 {[%clk 0:03:01]}  Be7 {[%clk 0:03:01]} 5. e4 {[%clk 0:03:02]}  O-O {[%clk 0:03:02]} 6. d3 {[%clk 0:03:02]}  Be6 {[%clk 0:03:02]} 7. Nge2 {[%clk 0:03:02]}  Qd7 {[%clk 0:03:02]} 8. O-O {[%clk 0:02:55]}  Bh3 {[%clk 0:03:02]} 9. f4 {[%clk 0:02:55]}  Bxg2 {[%clk 0:03:01]} 10. Kxg2 {[%clk 0:02:56]}  exf4 {[%clk 0:03:02]} 11. gxf4 {[%clk 0:02:53]}  c6 {[%clk 0:03:02]} 12. Ng3 {[%clk 0:02:54]}  Na6 {[%clk 0:03:00]} 13. Nf5 {[%clk 0:02:50]}  Bd8 {[%clk 0:02:58]} 14. Kh1 {[%clk 0:02:48]}  g6 {[%clk 0:02:57]} 15. Nh6+ {[%clk 0:02:45]}  Kh8 {[%clk 0:02:56]} 16. f5 {[%clk 0:02:45]}  Ng8 {[%clk 0:02:20]} 17. Nxg8 {[%clk 0:02:35]}  Rxg8 {[%clk 0:02:15]} 18. f6 {[%clk 0:02:34]}  Qh3 {[%clk 0:02:14]} 19. Rf3 {[%clk 0:02:31]}  Qh4 {[%clk 0:02:10]} 20. Qf1 {[%clk 0:02:31]}  g5 {[%clk 0:02:07]} 21. Rh3 {[%clk 0:02:26]}  Qg4 {[%clk 0:02:07]} 22. Be3 {[%clk 0:02:10]}  Rg6 {[%clk 0:02:06]} 23. e5 {[%clk 0:02:04]}  dxe5 {[%clk 0:02:02]} 24. Ne4 {[%clk 0:02:03]}  Nc7 {[%clk 0:01:53]} 25. Rg3 {[%clk 0:01:51]}  Qh5 {[%clk 0:01:53]} 26. Qf5 {[%clk 0:01:44]}  Ne6 {[%clk 0:01:48]} 27. Re1 {[%clk 0:01:11]}  Rh6 {[%clk 0:01:44]} 28. Bg1 {[%clk 0:01:01]}  Qg6 {[%clk 0:01:43]} 29. Nxg5 {[%clk 0:00:49]}  Nxg5 {[%clk 0:01:36]} 30. Rxg5 {[%clk 0:00:49]}  Qxf5 {[%clk 0:01:35]} 31. Rxf5 {[%clk 0:00:50]}  Bxf6 {[%clk 0:01:31]} 32. Ref1 {[%clk 0:00:47]}  Kg7 {[%clk 0:01:31]} 33. Be3 {[%clk 0:00:40]}  Rg6 {[%clk 0:01:27]} 34. h4 {[%clk 0:00:39]}  h5 {[%clk 0:01:10]} 35. Bg5 {[%clk 0:00:38]}  Bxg5 {[%clk 0:01:02]} 36. Rxf7+ {[%clk 0:00:38]}  Kh6 {[%clk 0:01:01]} 37. hxg5+ {[%clk 0:00:39]}  Rxg5 {[%clk 0:01:00]} 38. Rxb7 {[%clk 0:00:38]}  Rd8 {[%clk 0:00:54]} 39. Rf6+ {[%clk 0:00:35]}  Rg6 {[%clk 0:00:54]} 40. Rxg6+ {[%clk 0:00:35]}  Kxg6 {[%clk 0:00:54]} 41. Rxa7 {[%clk 0:00:35]}  Rxd3 {[%clk 0:00:54]} 42. Ra6 {[%clk 0:00:36]}  Rd1+ {[%clk 0:00:53]} 43. Kg2 {[%clk 0:00:36]}  Rd2+ {[%clk 0:00:54]} 44. Kf3 {[%clk 0:00:36]}  Rxb2 {[%clk 0:00:53]} 45. Rxc6+ {[%clk 0:00:36]}  Kf5 {[%clk 0:00:53]} 46. a4 {[%clk 0:00:34]}  Rb3+ {[%clk 0:00:52]} 47. Ke2 {[%clk 0:00:34]}  Ra3 {[%clk 0:00:47]} 48. Ra6 {[%clk 0:00:31]}  Ke4 {[%clk 0:00:44]} 49. c5 {[%clk 0:00:26]}  Ra2+ {[%clk 0:00:45]} 50. Kd1 {[%clk 0:00:27]}  Kd5 {[%clk 0:00:41]} 51. c6 {[%clk 0:00:25]}  Kd6 {[%clk 0:00:41]} 52. Kc1 {[%clk 0:00:20]}  h4 {[%clk 0:00:40]} 53. Kb1 {[%clk 0:00:15]}  Rg2 {[%clk 0:00:32]} 54. c7+ {[%clk 0:00:13]}  Kxc7 {[%clk 0:00:33]} 55. Rh6 {[%clk 0:00:14]}  Rg4 {[%clk 0:00:32]} 56. a5 {[%clk 0:00:14]}  Kb7 {[%clk 0:00:32]} 57. Kc2 {[%clk 0:00:13]}  Ra4 {[%clk 0:00:31]} 58. Kd3 {[%clk 0:00:12]}  Kc7 {[%clk 0:00:31]} 59. a6 {[%clk 0:00:11]}  Kd7 {[%clk 0:00:30]} 60. a7 {[%clk 0:00:11]}  Ra3+ {[%clk 0:00:26]} 61. Ke4 {[%clk 0:00:11]}  Ra4+ {[%clk 0:00:26]} 62. Kf5 {[%clk 0:00:09]}  Rf4+ {[%clk 0:00:20]} 63. Kxe5 {[%clk 0:00:08]}  Rf8 {[%clk 0:00:20]} 64. Rxh4 {[%clk 0:00:05]}  Kc6 {[%clk 0:00:20]} 65. Rh7 {[%clk 0:00:01]}  Re8+ {[%clk 0:00:19]} 66. Kd4 {[%clk 0:00:01]}  Rd8+ {[%clk 0:00:20]} 67. Kc4 {[%clk 0:00:02]}  Kb6 {[%clk 0:00:19]} 68. Kb4 {[%clk 0:00:03]}  Ra8 {[%clk 0:00:19]} 69. Rh6+ {[%clk 0:00:02]}  Kxa7 {[%clk 0:00:18]} 70. Kb5 {[%clk 0:00:03]}  Kb7 {[%clk 0:00:18]} 71. Rh7+ {[%clk 0:00:03]}  Kb8 {[%clk 0:00:18]} 72. Kb6 {[%clk 0:00:04]}  Ra6+ {[%clk 0:00:13]} 73. Kxa6 {[%clk 0:00:04]}  Kc8 {[%clk 0:00:14]} 74. Rb7 {[%clk 0:00:04]}  Kd8 {[%clk 0:00:15]} 75. Kb6 {[%clk 0:00:04]}  Ke8 {[%clk 0:00:16]} 76. Kc6 {[%clk 0:00:04]}  Kf8 {[%clk 0:00:17]} 1-0


[Site "https://www.chess.com"]

[Event "Titled Tuesday Blitz November 07 Late 2023"]
[White "GAO"]
[Black "Reprintsev, Alexander"]
[BlackFideId "14100541"]
[WhiteElo "2321"]
[BlackElo "2504"]
[Result "0-1"]
[Round "2"]
[TimeControl "180+1"]
[Date "2023.11.07"]
[WhiteClock "0:01:24"]
[BlackClock "0:00:49"]
[Board "123"]

1. e4 {[%clk 0:03:00]}  d5 {[%clk 0:02:42]} 2. exd5 {[%clk 0:02:57]}  Qxd5 {[%clk 0:02:41]} 3. Nc3 {[%clk 0:02:57]}  Qa5 {[%clk 0:02:41]} 4. Nf3 {[%clk 0:02:57]}  Nc6 {[%clk 0:02:40]} 5. Be2 {[%clk 0:02:57]}  Bg4 {[%clk 0:02:40]} 6. h3 {[%clk 0:02:55]}  Bh5 {[%clk 0:02:39]} 7. O-O {[%clk 0:02:45]}  O-O-O {[%clk 0:02:38]} 8. a3 {[%clk 0:02:43]}  e5 {[%clk 0:02:38]} 9. b4 {[%clk 0:02:42]}  Bxb4 {[%clk 0:02:37]} 10. axb4 {[%clk 0:02:30]}  Qxa1 {[%clk 0:02:36]} 11. Nxe5 {[%clk 0:02:31]}  Nxe5 {[%clk 0:02:32]} 12. Bxh5 {[%clk 0:02:30]}  Nf6 {[%clk 0:02:31]} 13. Bf3 {[%clk 0:02:29]}  Nxf3+ {[%clk 0:02:30]} 14. Qxf3 {[%clk 0:02:30]}  Qa6 {[%clk 0:02:30]} 15. d3 {[%clk 0:02:27]}  Qc6 {[%clk 0:02:29]} 16. Qxc6 {[%clk 0:02:25]}  bxc6 {[%clk 0:02:30]} 17. Bg5 {[%clk 0:02:25]}  Rd4 {[%clk 0:02:22]} 18. Bxf6 {[%clk 0:02:20]}  gxf6 {[%clk 0:02:22]} 19. Rb1 {[%clk 0:02:21]}  f5 {[%clk 0:02:07]} 20. f3 {[%clk 0:02:17]}  Re8 {[%clk 0:02:02]} 21. Kf2 {[%clk 0:02:16]}  Kd7 {[%clk 0:02:02]} 22. Ne2 {[%clk 0:02:14]}  Rd6 {[%clk 0:02:00]} 23. Nf4 {[%clk 0:02:14]}  Rb8 {[%clk 0:01:58]} 24. c3 {[%clk 0:02:07]}  a5 {[%clk 0:01:57]} 25. Ke3 {[%clk 0:02:00]}  axb4 {[%clk 0:01:56]} 26. cxb4 {[%clk 0:02:01]}  c5 {[%clk 0:01:55]} 27. b5 {[%clk 0:02:02]}  Rdb6 {[%clk 0:01:48]} 28. Nd5 {[%clk 0:01:55]}  Rxb5 {[%clk 0:01:47]} 29. Rc1 {[%clk 0:01:56]}  Kd6 {[%clk 0:01:42]} 30. Nf4 {[%clk 0:01:55]}  Re8+ {[%clk 0:01:41]} 31. Kf2 {[%clk 0:01:53]}  Rb2+ {[%clk 0:01:41]} 32. Kg3 {[%clk 0:01:53]}  Rg8+ {[%clk 0:01:40]} 33. Kh4 {[%clk 0:01:53]}  Rbxg2 {[%clk 0:01:34]} 34. Nxg2 {[%clk 0:01:52]}  Rxg2 {[%clk 0:01:35]} 35. Rc4 {[%clk 0:01:48]}  Rd2 {[%clk 0:01:30]} 36. Rc3 {[%clk 0:01:44]}  Kd5 {[%clk 0:01:29]} 37. Kh5 {[%clk 0:01:44]}  Rf2 {[%clk 0:01:27]} 38. Kg5 {[%clk 0:01:42]}  Rxf3 {[%clk 0:01:26]} 39. h4 {[%clk 0:01:42]}  f4 {[%clk 0:01:20]} 40. Kg4 {[%clk 0:01:42]}  Rf1 {[%clk 0:01:20]} 41. h5 {[%clk 0:01:42]}  f3 {[%clk 0:01:20]} 42. Kg3 {[%clk 0:01:43]}  Rh1 {[%clk 0:01:19]} 43. Kxf3 {[%clk 0:01:40]}  Rxh5 {[%clk 0:01:19]} 44. Rc1 {[%clk 0:01:39]}  Rh3+ {[%clk 0:01:19]} 45. Ke2 {[%clk 0:01:39]}  f5 {[%clk 0:01:17]} 46. Rf1 {[%clk 0:01:40]}  Ke5 {[%clk 0:01:16]} 47. Rc1 {[%clk 0:01:41]}  Kd6 {[%clk 0:01:16]} 48. Rf1 {[%clk 0:01:41]}  Rh5 {[%clk 0:01:11]} 49. Ke3 {[%clk 0:01:41]}  c4 {[%clk 0:01:08]} 50. dxc4 {[%clk 0:01:40]}  Kc5 {[%clk 0:01:09]} 51. Kd3 {[%clk 0:01:40]}  Rg5 {[%clk 0:01:04]} 52. Rh1 {[%clk 0:01:37]}  h5 {[%clk 0:01:05]} 53. Rh3 {[%clk 0:01:36]}  f4 {[%clk 0:01:03]} 54. Ke4 {[%clk 0:01:35]}  Kxc4 {[%clk 0:01:01]} 55. Kxf4 {[%clk 0:01:35]}  Rd5 {[%clk 0:00:58]} 56. Ke4 {[%clk 0:01:35]}  c6 {[%clk 0:00:58]} 57. Re3 {[%clk 0:01:29]}  h4 {[%clk 0:00:57]} 58. Rh3 {[%clk 0:01:29]}  Rd4+ {[%clk 0:00:57]} 59. Ke5 {[%clk 0:01:28]}  c5 {[%clk 0:00:57]} 60. Rh1 {[%clk 0:01:27]}  Kb5 {[%clk 0:00:57]} 61. Rb1+ {[%clk 0:01:27]}  Kc6 {[%clk 0:00:57]} 62. Rc1 {[%clk 0:01:26]}  h3 {[%clk 0:00:57]} 63. Rh1 {[%clk 0:01:25]}  Rd3 {[%clk 0:00:57]} 64. Ke4 {[%clk 0:01:24]}  c4 {[%clk 0:00:57]} 65. Rb1 {[%clk 0:01:24]}  h2 {[%clk 0:00:55]} 66. Rh1 {[%clk 0:01:24]}  Rd2 {[%clk 0:00:55]} 67. Ke3 {[%clk 0:01:25]}  c3 {[%clk 0:00:56]} 68. Kf3 {[%clk 0:01:26]}  Kc5 {[%clk 0:00:56]} 69. Ke3 {[%clk 0:01:26]}  Kc4 {[%clk 0:00:56]} 70. Kf3 {[%clk 0:01:27]}  Kd3 {[%clk 0:00:56]} 71. Ra1 {[%clk 0:01:26]}  c2 {[%clk 0:00:51]} 72. Ra3+ {[%clk 0:01:25]}  Kc4 {[%clk 0:00:51]} 73. Ra4+ {[%clk 0:01:26]}  Kb3 {[%clk 0:00:51]} 74. Ra1 {[%clk 0:01:26]}  Rd1 {[%clk 0:00:49]} 75. Ra8 {[%clk 0:01:24]} 0-1


[Site "https://www.chess.com"]